bitfinex/quotes_ETHUSD_20260102
["timestamp","ask_amount","ask_price","bid_price","bid_amount"]
[1767383383932,5.64754542,3125.0,3124.0,2.36775008]
[1767383384135,2.44751777,3125.0,3124.0,2.36775008]
[1767383384738,2.44751777,3125.0,3124.1,6.40184372]
[1767383384943,2.44751777,3125.0,3124.2,2.36775008]
[1767383385159,0.002,3125.0,3124.3,2.36775008]
[1767383386834,0.002,3125.0,3124.4,8.7689791]
[1767383387228,0.002,3125.0,3124.5,2.36775008]
[1767383387426,0.002,3125.0,3124.6,2.36775008]
[1767383387636,0.002,3125.3,3124.9,2.36775008]
[1767383389247,0.002,3125.0,3124.9,2.36775008]
[1767383389750,0.002,3125.0,3124.7,6.40797763]
[1767383390263,2.44751777,3125.0,3124.5,0.87689791]
[1767383390468,2.44751777,3125.0,3124.1,3.24470946]
[1767383390469,2.44751777,3125.0,3124.1,2.36775008]
[1767383390760,2.44751777,3125.0,3124.2,2.68852509]
[1767383391141,2.44751777,3125.0,3124.5,3.20045773]
[1767383391539,2.44751777,3125.0,3124.4,3.20059731]
[1767383393360,2.44751777,3125.0,3124.4,6.40121182]
[1767383393559,2.44751777,3125.0,3124.3,8.769184]
[1767383393759,2.44751777,3125.0,3124.3,9.6781799]
[1767383393959,0.002,3125.0,3124.4,2.36775008]
[1767383395172,0.002,3125.0,3124.5,3.20051208]
[1767383395646,0.002,3125.0,3124.5,6.40102416]
[1767383396142,0.002,3125.0,3124.5,3.20051208]
[1767383397666,0.002,3125.0,3124.5,8.76877424]
[1767383397838,0.002,3125.0,3124.6,2.36775008]
[1767383399149,0.002,3125.0,3124.7,2.36775008]
[1767383399342,0.002,3125.0,3124.5,8.20880845]
[1767383399543,0.002,3125.0,3124.5,10.51287091]
[1767383399754,0.002,3125.0,3124.7,3.20030722]
[1767383400275,0.002,3125.0,3124.8,2.30406246]
[1767383400843,0.002,3125.0,3124.7,3.20030722]
[1767383404369,0.002,3125.0,3124.7,8.7046769]
[1767383404577,0.002,3125.0,3124.8,2.30406246]
[1767383404778,0.002,3125.0,3124.8,3.27965886]
[1767383405074,0.002,3125.0,3124.8,0.9755964]
[1767383405272,0.002,3125.0,3124.5,6.34455872]
[1767383405447,0.002,3125.0,3124.6,3.20035598]
[1767383406084,2.47024247,3125.0,3124.5,0.84]
[1767383406266,2.46824247,3124.5,3124.1,0.001]
[1767383406470,2.46824247,3124.5,3123.7,5.50533659]
[1767383406670,3.10264362,3124.4,3123.7,5.50533659]
[1767383406883,2.46824247,3124.3,3123.6,3.20143193]
[1767383407176,0.63440115,3124.4,3123.7,2.30406246]
[1767383407385,2.46824247,3124.5,3123.7,2.30406246]
[1767383407960,0.002,3125.0,3123.9,2.30406246]
[1767383408276,0.002,3125.0,3124.1,2.30406246]
[1767383408277,3.20200136,3125.0,3124.1,2.30406246]
[1767383408482,5.67024383,3125.0,3124.1,2.30406246]
[1767383409180,5.67024383,3125.0,3124.2,3.2008194]
[1767383409531,0.56702438,3124.9,3124.2,5.50488186]
[1767383409791,3.03526685,3124.9,3124.1,3.20088702]
[1767383410357,3.03526685,3124.9,3124.0,6.34504664]
[1767383411473,5.66844728,3124.8,3124.0,6.34604664]
[1767383414411,2.46824247,3124.7,3124.0,6.34604664]
[1767383414591,3.41180049,3124.7,3124.0,6.34604664]
[1767383416819,2.46824247,3124.6,3124.0,6.34604664]
[1767383418225,2.46824247,3124.6,3124.0,5.50607979]
[1767383418582,2.46824247,3124.6,3124.0,2.30506246]
[1767383419885,2.46824247,3124.5,3124.0,0.001]
[1767383420091,2.46824247,3124.4,3124.0,0.001]
[1767383420702,2.46824247,3123.9,3123.5,0.001]
[1767383421987,3.87576908,3124.0,3123.5,0.001]
[1767383422628,6.34401155,3123.7,3123.0,2.30506246]
[1767383422829,6.34401155,3123.7,3123.0,0.001]
[1767383422830,3.74288948,3123.6,3123.0,0.001]
[1767383423321,2.46824247,3123.6,3123.0,0.001]
[1767383423613,2.46824247,3123.6,3123.0,5.50707977]
[1767383424407,3.20115673,3123.9,3123.1,2.30406246]
[1767383424616,3.20115673,3123.9,3123.1,2.29406246]
[1767383425013,3.20115673,3123.9,3123.2,2.30406246]
[1767383425316,0.88704304,3123.8,3123.2,2.30406246]
[1767383427720,0.88704304,3123.8,3123.0,0.001]
[1767383427721,5.66957422,3123.7,3123.0,0.001]
[1767383428397,5.66957422,3123.7,3123.0,2.43872878]
[1767383429950,2.31404731,3123.6,3123.0,2.43872878]
[1767383430533,2.31404731,3123.6,3123.0,5.640764]
[1767383430725,1.02781912,3123.6,3123.0,5.640764]
[1767383431403,1.02781912,3123.6,3123.1,2.48170175]
[1767383432629,1.02781912,3123.6,3123.2,2.48170175]
[1767383432830,1.02781912,3123.6,3123.1,3.20192322]
[1767383433298,1.02781912,3123.6,3123.0,5.68469582]
[1767383433829,3.34186643,3123.6,3123.0,5.68469582]
[1767383434125,0.65432049,3123.5,3123.0,5.68469582]
[1767383434328,2.31404731,3123.8,3123.1,2.48170175]
[1767383436014,2.31404731,3123.8,3123.1,5.68356478]
[1767383436599,2.31404731,3123.8,3123.2,2.48170175]
[1767383436832,3.20314099,3123.9,3123.2,2.48170175]
[1767383437014,0.3203141,3123.8,3123.2,2.48170175]
[1767383438231,3.5215958,3123.8,3123.2,2.48170175]
[1767383440433,2.31404731,3123.7,3123.0,0.001]
[1767383440635,2.31404731,3123.7,3122.8,3.20321748]
[1767383440636,2.31404731,3123.4,3122.8,0.001]
[1767383440849,6.18981639,3123.2,3122.7,0.001]
[1767383441137,6.18981639,3122.9,3122.3,0.001]
[1767383441342,0.61898164,3123.3,3122.5,2.48170175]
[1767383441343,2.31404731,3123.2,3122.5,2.48170175]
[1767383441744,2.31404731,3123.0,3122.3,2.48270175]
[1767383442243,2.31404731,3123.0,3122.3,5.68545473]
[1767383442410,2.93302895,3123.0,3122.3,5.68545473]
[1767383443112,6.13508729,3123.0,3122.3,2.48270175]
[1767383443320,6.13508729,3123.0,3122.3,5.68546009]
[1767383443520,6.13508729,3123.0,3122.3,2.48270175]
[1767383444443,0.61898164,3123.0,3122.4,2.48170175]
[1767383445340,0.16,3124.7,3122.5,2.48170175]
[1767383445515,0.16,3124.7,3122.6,2.48170175]
[1767383445516,5.51531366,3123.8,3122.6,2.48170175]
[1767383445838,5.51531366,3123.8,3122.5,4.71576908]
[1767383445839,2.31404731,3123.5,3122.5,0.84]
[1767383446019,2.31404731,3123.5,3122.5,3.32170175]
[1767383446219,2.31404731,3123.5,3122.6,2.48170175]
[1767383446416,3.01702895,3123.5,3122.6,2.48170175]
[1767383446643,6.21866633,3123.5,3122.7,2.48170175]
[1767383447746,2.31404731,3123.4,3122.7,2.48170175]
[1767383448549,2.31404731,3123.4,3122.7,5.68402554]
[1767383449046,0.002,3123.9,3122.7,5.68402554]
[1767383449047,3.20313904,3123.9,3122.8,2.48170175]
[1767383449248,3.20313904,3123.9,3123.0,2.48170175]
[1767383450146,0.002,3123.8,3123.0,2.48170175]
[1767383450650,0.002,3123.8,3123.1,2.48170175]
[1767383453054,2.31604731,3123.8,3122.9,2.48170175]
[1767383453359,3.1860774,3123.7,3122.9,2.48170175]
[1767383454157,3.1860774,3123.7,3123.0,2.48170175]
[1767383454453,3.1860774,3123.7,3123.0,5.683743]
[1767383454652,3.20143424,3123.6,3123.0,2.48170175]
[1767383454854,6.3874452,3123.7,3123.0,2.48170175]
[1767383456356,4.07339789,3123.7,3123.1,2.48170175]
[1767383456769,2.76160502,3123.6,3122.7,2.48170175]
[1767383456930,0.0400192,3123.5,3123.0,0.001]
[1767383457257,2.31404731,3123.5,3123.0,0.001]
[1767383458763,3.20163923,3123.4,3123.0,0.001]
[1767383458935,0.87172377,3123.3,3123.0,0.001]
[1767383461578,4.07350712,3123.3,3123.0,0.001]
[1767383461864,2.32159929,3123.2,3123.0,0.001]
[1767383462097,2.32159929,3123.2,3122.6,0.001]
[1767383463335,2.32159929,3123.0,3122.6,0.001]
[1767383463537,2.32159929,3122.8,3122.3,0.001]
[1767383463737,0.87254929,3122.9,3122.3,2.45553861]
[1767383464165,3.19414858,3122.9,3122.3,0.001]
[1767383465269,2.32159929,3122.8,3122.5,0.001]
[1767383465449,0.31941486,3122.7,3122.5,0.001]
[1767383465649,3.52179772,3122.7,3122.5,0.001]
[1767383466050,2.32159929,3122.6,3122.0,0.001]
[1767383466251,0.31941486,3122.7,3122.0,5.65852417]
[1767383466450,4.04194678,3123.1,3122.1,2.45453861]
[1767383466655,2.32159929,3123.0,3122.1,2.45453861]
[1767383467245,6.40389356,3123.1,3122.3,2.45453861]
[1767383467566,2.32159929,3123.3,3122.5,2.45453861]
[1767383467567,3.2018146,3123.3,3122.5,2.45453861]
[1767383467741,6.4036292,3123.3,3122.5,2.45453861]
[1767383467937,0.64036292,3123.2,3122.5,2.45453861]
[1767383469462,3.20159341,3123.5,3122.7,2.45453861]
[1767383470149,0.002,3123.8,3122.8,2.45453861]
[1767383471372,3.20328944,3123.8,3122.8,2.45453861]
[1767383471578,3.20328944,3123.8,3123.0,2.45453861]
[1767383472270,0.002,3123.8,3123.0,2.45453861]
[1767383472456,0.002,3123.8,3123.1,2.45453861]
[1767383473772,0.002,3123.8,3123.1,5.65644579]
[1767383474478,0.002,3123.8,3123.1,2.45453861]
[1767383475494,2.32359929,3123.8,3122.9,2.45453861]
[1767383475785,2.32359929,3123.8,3122.9,3.2020963]
[1767383475941,2.32159929,3123.6,3122.8,5.65679299]
[1767383476147,2.32159929,3123.6,3122.8,2.45453861]
[1767383476965,4.04325136,3123.8,3122.8,2.45453861]
[1767383476966,0.002,3123.8,3122.8,2.45453861]
[1767383478084,0.002,3123.8,3122.7,9.607031]
[1767383478085,0.002,3123.8,3123.0,2.45453861]
[1767383479179,0.002,3123.8,3123.2,2.45453861]
[1767383481279,0.002,3123.8,3123.4,2.45453861]
[1767383485464,0.002,3123.8,3123.2,2.45453861]
[1767383486491,0.002,3123.8,3123.2,5.65635737]
[1767383486688,2.55615922,3123.8,3122.6,2.45453861]
[1767383486996,2.32159929,3123.7,3122.6,2.45453861]
[1767383487162,2.32159929,3123.7,3122.9,3.2020924]
[1767383487359,2.32159929,3123.6,3122.9,3.2020924]
[1767383488182,2.32159929,3123.6,3122.9,8.7081904]
[1767383488367,5.53606721,3123.8,3123.1,2.30394616]
[1767383488702,2.33480728,3123.8,3123.1,2.30394616]
[1767383489003,0.002,3123.8,3123.1,2.30394616]
[1767383489582,0.002,3123.8,3123.3,2.4231115]
[1767383491689,0.002,3125.3,3123.6,2.4231115]
[1767383491690,2.27674043,3124.6,3123.6,2.4231115]
[1767383491992,2.27674043,3124.6,3123.4,10.44491769]
[1767383491993,2.27674043,3124.6,3123.8,2.4231115]
[1767383492191,3.2004146,3124.6,3123.8,2.4231115]
[1767383492393,2.27674043,3124.8,3123.7,0.24231115]
[1767383492566,0.002,3125.0,3124.1,2.4231115]
[1767383493579,0.002,3125.0,3124.3,2.4231115]
[1767383494063,0.002,3124.6,3124.3,2.4231115]
[1767383494967,0.002,3124.6,3124.1,5.6239963]
[1767383495172,0.002,3124.6,3124.2,2.4231115]
[1767383495772,0.002,3124.6,3124.2,5.62389551]
[1767383496010,0.002,3124.6,3124.1,3.20087385]
[1767383496374,0.002,3124.6,3124.2,3.20081003]
[1767383497070,2.27874043,3124.6,3123.5,2.4231115]
[1767383497276,2.27874043,3124.6,3124.0,3.20096663]
[1767383497710,2.27874043,3124.6,3124.1,3.20091388]
[1767383497885,2.27874043,3124.6,3123.8,3.20118716]
[1767383498073,2.27874043,3124.6,3123.8,8.82552793]
[1767383499310,2.27874043,3124.6,3123.9,2.4231115]
[1767383500808,2.27874043,3124.6,3124.0,3.20102432]
[1767383501297,2.27674043,3124.5,3123.8,3.20117239]
[1767383501512,2.27674043,3124.5,3123.9,3.20111863]
[1767383501680,0.002,3124.6,3123.9,5.62423013]
[1767383502215,0.002,3124.6,3123.9,8.82535692]
[1767383504906,0.002,3124.6,3123.9,5.62423013]
[1767383505292,0.002,3124.6,3123.9,8.82535692]
[1767383505794,2.31874555,3124.6,3123.9,5.62423013]
[1767383505995,2.82865393,3124.5,3123.7,4.04133048]
[1767383506311,0.002,3124.6,3123.9,8.825361]
[1767383508103,0.002,3124.6,3124.0,2.4231115]
[1767383508609,2.27874043,3124.6,3124.0,2.4231115]
[1767383509105,2.27874043,3124.6,3123.8,3.20122927]
[1767383509400,2.27874043,3124.6,3123.9,0.001]
[1767383509576,2.27674043,3124.5,3123.9,0.001]
[1767383510705,2.27674043,3124.2,3122.8,2.4231115]
[1767383510883,2.27674043,3124.2,3123.6,3.20137485]
[1767383511212,2.27674043,3124.2,3123.7,3.20132407]
[1767383511710,2.27674043,3124.2,3123.6,3.20139176]
[1767383512113,2.27674043,3124.2,3123.5,3.20150595]
[1767383512317,2.27674043,3124.1,3123.4,3.20158561]
[1767383512808,2.27674043,3123.6,3123.0,3.20201661]
[1767383513711,2.27674043,3123.6,3123.0,6.40406592]
[1767383514006,2.27674043,3123.6,3122.8,0.84]
[1767383514206,2.50441447,3123.6,3123.0,3.20203134]
[1767383514708,2.50441447,3123.6,3122.9,3.20215184]
[1767383515407,2.27674043,3123.5,3122.8,5.62536093]
[1767383515781,2.27674043,3123.5,3122.8,8.82761531]
[1767383517223,2.27674043,3123.3,3122.9,0.001]
[1767383517510,4.83572117,3123.5,3122.9,0.001]
[1767383517511,2.27674043,3123.5,3122.9,0.001]
[1767383518714,2.27674043,3123.4,3122.9,0.001]
[1767383519410,2.37109241,3123.3,3122.9,0.001]
[1767383520407,0.22767404,3123.6,3122.9,2.50065168]
[1767383520608,2.37109241,3123.7,3122.9,2.50065168]
[1767383521176,2.37109241,3124.0,3123.0,2.49965168]
[1767383521403,3.20112679,3123.9,3123.2,2.49965168]
[1767383522007,5.5722192,3123.9,3123.2,2.49965168]
[1767383522376,2.37109241,3123.8,3122.9,3.34065168]
[1767383522581,6.40225358,3123.9,3122.9,0.001]
[1767383522582,2.37109241,3123.5,3122.9,0.001]
[1767383523782,5.57263125,3123.5,3122.9,0.001]
[1767383524012,5.57263125,3123.5,3122.5,0.001]
[1767383524013,6.24849767,3123.0,3122.5,0.001]
[1767383524225,2.37109241,3123.2,3122.7,3.20235629]
[1767383524386,2.37109241,3123.4,3122.7,3.20235629]
[1767383524587,0.55726313,3123.3,3122.7,3.20235629]
[1767383524787,2.37109241,3123.7,3122.8,2.49965168]
[1767383525021,3.20144926,3123.6,3123.1,0.001]
[1767383525721,5.57221433,3124.0,3123.1,0.001]
[1767383525918,3.20095281,3124.1,3123.1,2.50065168]
[1767383526117,3.20095281,3124.1,3123.1,2.75071685]
[1767383526318,2.37109241,3124.1,3123.2,0.84]
[1767383526521,2.37109241,3123.9,3123.2,0.84]
[1767383527927,2.37109241,3123.9,3123.2,4.04180002]
[1767383528293,2.37109241,3123.9,3123.2,3.20180002]
[1767383528496,3.20096996,3124.1,3123.3,2.49965168]
[1767383529719,0.002,3124.2,3123.3,2.49965168]
[1767383529909,2.37109241,3123.9,3123.1,0.001]
[1767383530109,2.37109241,3123.9,3123.2,3.20180441]
[1767383530289,2.37109241,3123.9,3123.2,3.20179648]
[1767383531225,2.60820165,3123.9,3123.1,0.001]
[1767383531538,2.41110777,3123.8,3123.1,0.001]
[1767383531691,2.37109241,3123.8,3123.1,0.001]
[1767383532302,2.37109241,3123.6,3123.1,0.001]
[1767383534293,2.37109241,3123.4,3122.5,0.001]
[1767383534526,2.37109241,3123.2,3122.5,0.001]
[1767383535928,2.37109241,3123.2,3122.1,0.841]
[1767383535929,2.37109241,3123.2,3122.1,0.001]
[1767383536298,0.23710924,3123.3,3122.1,0.001]
[1767383536299,2.37109241,3123.0,3122.1,0.001]
[1767383536931,2.37109241,3122.9,3121.9,0.001]
[1767383537101,2.37109241,3122.8,3121.9,0.001]
[1767383538532,2.37109241,3122.6,3121.9,0.001]
[1767383540232,8.77621649,3122.5,3121.9,0.001]
[1767383541026,2.37109241,3122.4,3121.9,0.001]
[1767383541333,2.37109241,3122.2,3121.9,0.001]
[1767383543441,5.57397878,3122.2,3121.9,0.001]
[1767383543931,8.77686515,3122.2,3121.9,0.001]
[1767383544226,5.57397878,3122.2,3121.7,0.001]
[1767383547530,2.41808442,3122.1,3121.7,0.001]
[1767383547833,3.30047014,3122.0,3121.4,0.001]
[1767383549542,3.20328015,3121.8,3121.3,0.001]
[1767383549726,5.56793746,3121.9,3121.3,0.001]
[1767383550041,6.21296978,3121.9,3121.3,0.001]
[1767383550412,0.64503232,3121.9,3121.3,2.39353361]
[1767383550731,2.36472032,3121.8,3121.3,0.001]
[1767383552045,5.56801952,3121.8,3121.3,0.001]
[1767383552205,2.36472032,3121.8,3121.3,0.001]
[1767383552404,0.62129675,3121.7,3121.3,0.001]
[1767383560724,3.20469715,3122.4,3121.5,2.39253361]
[1767383561035,0.002,3122.4,3121.5,2.39253361]
[1767383561537,0.002,3122.4,3121.8,2.39253361]
[1767383561739,0.002,3122.4,3122.0,2.39253361]
[1767383561954,2.36472032,3123.4,3122.2,2.39253361]
[1767383562136,0.23647203,3123.3,3122.4,2.39253361]
[1767383562337,5.56641079,3123.4,3122.5,2.39253361]
[1767383562523,5.56641079,3123.4,3121.8,2.39253361]
[1767383562524,2.36472032,3122.8,3121.8,2.39253361]
[1767383562727,2.36472032,3123.0,3122.0,2.39253361]
[1767383562930,7.08627044,3123.1,3122.0,2.39253361]
[1767383563138,9.45099076,3123.1,3122.0,2.39253361]
[1767383563343,2.36472032,3123.0,3122.0,2.39253361]
[1767383563549,3.63001743,3123.0,3122.0,2.39253361]
[1767383564067,2.36472032,3122.9,3122.0,2.39253361]
[1767383564872,2.36472032,3122.8,3122.0,2.39253361]
[1767383565233,2.36472032,3122.8,3122.0,5.59556267]
[1767383565734,2.36472032,3122.8,3122.1,2.39253361]
[1767383566074,3.04794038,3122.8,3122.1,2.39253361]
[1767383567561,3.04794038,3122.8,3122.1,5.59547523]
[1767383569161,0.002,3123.0,3122.2,2.39253361]
[1767383569538,0.002,3123.0,3122.4,2.39253361]
[1767383571667,0.002,3123.0,3122.6,2.39253361]
[1767383571856,5.56806342,3123.7,3122.8,2.39253361]
[1767383572658,8.76946804,3123.7,3122.8,2.39253361]
[1767383572961,0.9609468,3123.6,3122.8,2.39253361]
[1767383573758,3.20153673,3123.5,3122.8,2.39253361]
[1767383573964,5.56625705,3123.5,3122.8,2.39253361]
[1767383574164,0.002,3123.0,3122.6,2.39253361]
[1767383575056,0.002,3123.0,3122.4,5.59515704]
[1767383575257,2.60339235,3123.0,3122.1,5.59549175]
[1767383575568,2.36472032,3122.8,3122.1,3.20296812]
[1767383575739,2.36472032,3122.8,3121.9,3.20315502]
[1767383575740,2.36472032,3122.8,3121.8,2.39253361]
[1767383575940,2.36472032,3122.7,3121.9,3.20314803]
[1767383576264,2.36472032,3122.7,3122.0,3.20307367]
[1767383576472,2.36472032,3122.7,3121.8,3.23253361]
[1767383576661,2.36472032,3122.7,3122.0,3.2030661]
[1767383577183,2.36472032,3122.7,3121.9,3.2031398]
[1767383577366,2.36472032,3122.7,3121.8,2.39253361]
[1767383577970,2.36472032,3122.6,3121.9,3.20317755]
[1767383578470,3.20409508,3123.0,3122.0,2.39253361]
[1767383578774,6.44588422,3123.0,3122.0,2.39253361]
[1767383578970,0.002,3123.0,3122.0,2.39253361]
[1767383579953,0.002,3123.0,3122.2,2.3544789]
[1767383580163,0.002,3123.0,3122.4,2.3544789]
[1767383582380,0.002,3123.0,3122.5,3.20256204]
[1767383582574,2.29760077,3123.0,3122.2,4.04278519]
[1767383582873,0.002,3123.0,3122.4,3.20264316]
[1767383583074,0.002,3123.0,3122.4,5.55712206]
[1767383583981,0.002,3123.0,3122.4,8.75978667]
[1767383584288,3.20164983,3123.4,3122.7,2.3544789]
[1767383584446,2.29560077,3123.6,3122.7,2.3544789]
[1767383584653,5.4968011,3123.9,3122.9,2.3544789]
[1767383584973,5.49674073,3123.9,3122.9,2.3544789]
[1767383585887,3.2012349,3123.8,3122.9,2.3544789]
[1767383586184,5.49677783,3123.9,3122.9,2.3544789]
[1767383586351,5.49677783,3123.9,3123.1,2.3544789]
[1767383586979,8.69795636,3123.9,3123.1,2.3544789]
[1767383587156,8.69795636,3123.9,3122.9,3.20213217]
[1767383587362,2.29760077,3123.7,3122.9,3.20213217]
[1767383587562,2.29760077,3123.7,3122.8,5.55668512]
[1767383587861,2.29760077,3123.7,3122.9,3.20214809]
[1767383588484,2.29760077,3123.7,3122.9,9.7186698]
[1767383588698,2.29760077,3123.7,3123.0,2.3544789]
[1767383588699,0.002,3123.7,3123.0,2.3544789]
[1767383589981,5.49894077,3123.7,3122.9,0.95989097]
[1767383590153,5.49894077,3123.7,3122.9,3.20214937]
[1767383590957,2.29560077,3123.6,3122.9,3.20214937]
[1767383591376,2.29560077,3123.6,3122.7,3.20228144]
[1767383591682,3.20334,3123.7,3122.8,5.55672308]
[1767383592377,5.49894077,3123.7,3122.8,5.55672308]
[1767383593452,0.87001939,3123.6,3122.8,5.55672308]
[1767383594483,2.29760077,3123.7,3122.9,2.3544789]
[1767383594695,3.2033389,3123.7,3122.9,2.3544789]
[1767383594861,2.29760077,3123.7,3122.9,2.3544789]
[1767383596265,2.29760077,3123.7,3123.0,3.20204931]
[1767383598490,5.49894593,3123.7,3123.0,3.20204931]
[1767383598794,6.45295328,3123.7,3122.9,5.55657777]
[1767383600194,4.15735251,3123.7,3123.0,2.3544789]
[1767383600796,0.95600735,3123.7,3123.0,2.3544789]
[1767383601012,0.002,3123.7,3123.0,2.3544789]
[1767383601227,0.002,3123.7,3123.1,2.3544789]
[1767383601500,3.20282818,3124.2,3123.6,2.3544789]
[1767383601688,6.40365636,3124.2,3123.6,2.3544789]
[1767383602220,0.002,3124.2,3123.6,2.3544789]
[1767383603315,0.002,3124.2,3123.4,2.3544789]
[1767383603682,0.002,3124.2,3123.4,5.556111]
[1767383603883,0.002,3124.2,3123.4,6.43190596]
[1767383604217,3.2028194,3124.2,3123.4,3.23027386]
[1767383604514,2.29560077,3124.1,3123.4,3.23027386]
[1767383604738,0.0400128,3124.0,3123.4,3.23027386]
[1767383604928,0.0400128,3124.0,3123.2,2.3544789]
[1767383604929,2.33561357,3124.0,3123.2,2.3544789]
[1767383605808,0.002,3123.7,3123.2,2.3544789]
[1767383608289,0.002,3123.7,3123.2,5.55632158]
[1767383608506,0.002,3123.7,3123.3,2.30698798]
[1767383609516,0.002,3123.7,3123.3,5.50872204]
[1767383609715,0.002,3123.7,3123.4,2.31749308]
[1767383611994,0.002,3123.7,3123.4,5.51912936]
[1767383612309,0.002,3124.2,3123.5,2.86940602]
[1767383612518,3.20242266,3124.6,3124.1,2.31749308]
[1767383612690,3.20242266,3124.6,3123.9,2.31749308]
[1767383612886,6.40284532,3124.6,3123.9,2.31749308]
[1767383613091,3.20242266,3124.6,3123.9,2.31749308]
[1767383613496,0.002,3124.6,3123.9,2.31749308]
[1767383613706,0.002,3124.6,3123.9,2.86936024]
[1767383614110,0.002,3124.6,3123.9,6.07046407]
[1767383614611,0.002,3124.2,3123.9,6.07046407]
[1767383614788,0.002,3124.6,3124.0,2.31749308]
[1767383615917,2.40746015,3124.4,3123.5,2.31749308]
[1767383616089,2.40746015,3124.2,3123.2,2.31749308]
[1767383616414,2.40746015,3124.2,3123.3,3.20174031]
[1767383617288,5.60838201,3124.1,3123.2,5.51930045]
[1767383617483,8.80930387,3124.1,3123.2,5.51930045]
[1767383617687,5.60838201,3124.1,3123.2,5.51930045]
[1767383617914,3.20084017,3124.2,3123.3,2.31749308]
[1767383618288,6.40168034,3124.2,3123.3,2.31749308]
[1767383618494,8.80914049,3124.2,3123.3,2.31749308]
[1767383619816,8.80914049,3124.2,3123.3,5.51920983]
[1767383620516,0.32474602,3124.3,3123.4,2.31749308]
[1767383620819,3.20051899,3124.5,3123.5,2.31749308]
[1767383621423,4.04242639,3124.6,3123.5,2.31749308]
[1767383621620,0.002,3124.6,3123.8,2.31749308]
[1767383623218,0.002,3124.2,3123.8,2.31749308]
[1767383623603,0.002,3124.6,3124.1,2.31749308]
[1767383624921,2.40946015,3124.6,3123.5,2.31749308]
[1767383625232,2.65040617,3124.6,3123.7,3.20128079]
[1767383625431,2.65040617,3124.6,3123.8,3.20121194]
[1767383627142,3.20051208,3124.5,3123.7,5.51877557]
[1767383629137,5.60797223,3124.5,3123.7,5.51877557]
[1767383629332,8.84849071,3124.5,3123.7,2.31749308]
[1767383629540,8.80848431,3124.5,3123.7,2.31749308]
[1767383629940,2.40746015,3124.4,3123.7,2.31749308]
[1767383630443,2.44746911,3124.3,3123.4,3.20162059]
[1767383630809,2.40746015,3124.3,3123.5,3.20153299]
[1767383631006,2.40746015,3124.3,3123.5,3.20253299]
[1767383631836,5.60827955,3124.2,3123.5,0.001]
[1767383632207,2.45541745,3124.1,3123.5,0.001]
[1767383632412,2.45541745,3123.9,3123.5,0.001]
[1767383632613,0.56562369,3124.0,3123.5,0.001]
[1767383632838,2.45541745,3124.1,3123.5,0.001]
[1767383634437,2.45541745,3123.9,3123.5,0.001]
[1767383636753,6.49639375,3124.1,3123.5,0.001]
[1767383638653,9.69740804,3124.1,3123.5,0.001]
[1767383638847,3.20071696,3124.3,3123.6,2.38524986]
[1767383639143,3.93156745,3124.3,3123.6,2.38524986]
[1767383639539,3.93356745,3124.3,3123.6,2.38524986]
[1767383640447,9.58704144,3124.3,3123.6,2.38524986]
[1767383641047,6.38632448,3124.3,3123.6,2.38524986]
[1767383642656,9.58704144,3124.3,3123.6,2.38524986]
[1767383642834,3.50197548,3124.2,3123.6,2.38524986]
[1767383643448,3.50197548,3124.2,3123.5,0.001]
[1767383643960,3.50197548,3124.2,3123.5,2.4847665]
[1767383644322,3.20092186,3124.1,3123.5,2.4847665]
[1767383645154,3.20092186,3124.1,3123.3,0.001]
[1767383645155,2.45275703,3123.8,3123.3,0.001]
[1767383645453,2.45275703,3123.5,3122.8,0.001]
[1767383645961,2.45275703,3122.9,3122.2,0.001]
[1767383646160,2.45275703,3123.2,3122.2,2.4847665]
[1767383646461,3.20204931,3123.0,3122.2,2.4847665]
[1767383646627,3.44725875,3123.1,3122.3,2.4837665]
[1767383647029,9.10199883,3123.1,3122.3,2.4837665]
[1767383647339,2.45275703,3123.0,3122.2,0.001]
[1767383648030,2.45275703,3123.0,3122.2,2.4847665]
[1767383648226,0.91019988,3123.0,3122.3,2.4837665]
[1767383648449,3.20215184,3122.9,3122.3,2.4837665]
[1767383648825,3.20215184,3122.9,3122.2,0.001]
[1767383649031,3.20215184,3122.9,3122.2,2.4847665]
[1767383649223,6.40430368,3122.9,3122.2,2.4847665]
[1767383649457,0.97672606,3122.8,3122.2,2.4847665]
[1767383650226,0.97672606,3122.8,3122.2,0.001]
[1767383650556,3.20235693,3122.7,3122.2,0.001]
[1767383650762,6.40471386,3122.7,3122.2,0.001]
[1767383651057,3.20235693,3122.7,3122.2,0.001]
[1767383651246,0.7381346,3122.6,3122.2,0.001]
[1767383652034,0.7381346,3122.6,3122.2,2.4847665]
[1767383652234,3.44723897,3123.1,3122.2,2.4847665]
[1767383652468,3.20196327,3123.1,3122.2,2.4847665]
[1767383652643,6.40374892,3123.2,3122.4,2.4837665]
[1767383653874,8.85650595,3123.2,3122.4,2.4837665]
[1767383654071,0.04002433,3123.1,3122.4,2.4837665]
[1767383654274,3.34241006,3123.0,3122.2,0.001]
[1767383654832,3.20215184,3122.9,3122.2,0.001]
[1767383655139,3.20215184,3122.9,3122.2,2.4847665]
[1767383655565,6.40430368,3122.9,3122.2,2.4847665]
[1767383655742,6.40430368,3122.9,3122.2,0.001]
[1767383655743,0.97467137,3122.8,3122.2,0.001]
[1767383656658,3.4274284,3122.8,3122.2,0.001]
[1767383657072,3.20235693,3122.7,3122.2,0.001]
[1767383659367,4.17693926,3122.8,3122.2,0.001]
[1767383659669,0.002,3123.2,3122.2,2.4847665]
[1767383659867,3.20198304,3123.1,3122.2,2.4847665]
[1767383660041,0.002,3123.2,3122.3,2.4837665]
[1767383661172,0.002,3123.2,3122.5,2.4837665]
[1767383661465,0.002,3123.2,3122.7,2.4837665]
[1767383662257,0.002,3123.2,3122.8,2.4837665]
[1767383663441,0.002,3123.2,3122.9,2.4837665]
[1767383669182,0.002,3123.2,3122.9,5.68588982]
[1767383669344,0.84,3124.0,3122.9,5.68588982]
[1767383669345,3.20126985,3123.8,3123.2,2.32332686]
[1767383669544,3.20115975,3123.9,3123.2,2.32332686]
[1767383670351,5.50860228,3124.2,3123.3,2.32332686]
[1767383670955,3.20275575,3124.3,3123.5,2.32332686]
[1767383671349,6.4035115,3124.3,3123.5,2.32332686]
[1767383671550,3.20275575,3124.3,3123.5,2.32332686]
[1767383672177,0.002,3124.3,3123.5,2.9436147]
[1767383672385,0.002,3124.3,3123.7,2.32332686]
[1767383674878,0.002,3124.3,3123.7,5.52461073]
[1767383675077,0.002,3124.3,3123.7,2.32332686]